[Event "*** Titled Tuesday 3|2 Blitz"]
[Site "Chess.com"]
[Date "2016.01.05"]
[Round "5"]
[White "Tesla37"]
[Black "Frolyanov_D"]
[Result "1-0"]
[WhiteElo "2543"]
[BlackElo "2469"]
[TimeControl "180+2"]
[EndTime "12:01:34 PST"]
[Termination "Tesla37 won on time"]

1. e4 {[%clk 0:03:01.9]} 1... e5 {[%clk 0:03:01]} 2. Nf3 {[%clk 0:03:02.2]} 2...
Nf6 {[%clk 0:03:02.5]} 3. d4 {[%clk 0:03:00.7]} 3... Nxe4 {[%clk 0:03:03.3]} 4.
Bd3 {[%clk 0:03:01.5]} 4... Nc6 {[%clk 0:03:04.2]} 5. dxe5 {[%clk 0:02:58.5]}
5... d5 {[%clk 0:02:59.1]} 6. exd6 {[%clk 0:02:54.4]} 6... Nxd6 {[%clk
0:02:59.3]} 7. O-O {[%clk 0:02:54.6]} 7... Be7 {[%clk 0:02:58.3]} 8. Bf4 {[%clk
0:02:54.6]} 8... O-O {[%clk 0:02:57.1]} 9. Nc3 {[%clk 0:02:55.5]} 9... Be6
{[%clk 0:02:55.4]} 10. Re1 {[%clk 0:02:52.5]} 10... Bf6 {[%clk 0:02:54.5]} 11.
Ne5 {[%clk 0:02:41.8]} 11... Nxe5 {[%clk 0:02:52.8]} 12. Bxe5 {[%clk 0:02:41.5]}
12... Bxe5 {[%clk 0:02:53.4]} 13. Rxe5 {[%clk 0:02:40]} 13... Qf6 {[%clk
0:02:53]} 14. Qe2 {[%clk 0:02:31]} 14... Rad8 {[%clk 0:02:47.3]} 15. Re1 {[%clk
0:02:31]} 15... g6 {[%clk 0:02:46.7]} 16. h3 {[%clk 0:02:31.8]} 16... c6 {[%clk
0:02:40.5]} 17. Qe3 {[%clk 0:02:31.2]} 17... b6 {[%clk 0:02:33.6]} 18. Qh6
{[%clk 0:02:29.9]} 18... Nf5 {[%clk 0:02:27.1]} 19. Qf4 {[%clk 0:02:22.5]} 19...
Qg7 {[%clk 0:02:11.4]} 20. Ne4 {[%clk 0:02:13]} 20... Rd5 {[%clk 0:02:07.7]} 21.
Ng5 {[%clk 0:02:09.4]} 21... Rxe5 {[%clk 0:02:01.1]} 22. Rxe5 {[%clk 0:02:10.1]}
22... Bc8 {[%clk 0:01:59.1]} 23. Bc4 {[%clk 0:02:10.6]} 23... Nd6 {[%clk
0:01:35.7]} 24. Bb3 {[%clk 0:02:03.4]} 24... h6 {[%clk 0:01:35.5]} 25. Re7
{[%clk 0:01:56.7]} 25... hxg5 {[%clk 0:00:57.8]} 26. Qxd6 {[%clk 0:01:56.6]}
26... g4 {[%clk 0:00:50.1]} 27. hxg4 {[%clk 0:01:48.1]} 27... Bxg4 {[%clk
0:00:45.5]} 28. Rxa7 {[%clk 0:01:47]} 28... Qh6 {[%clk 0:00:40.5]} 29. Qf6
{[%clk 0:01:39.8]} 29... Qc1+ {[%clk 0:00:08.4]} 30. Kh2 {[%clk 0:01:40]} 30...
Qh6+ {[%clk 0:00:07.6]} 31. Kg3 {[%clk 0:01:40.9]} 31... Be6 {[%clk 0:00:07.8]}
32. Bxe6 {[%clk 0:01:41.2]} 32... fxe6 {[%clk 0:00:08.6]} 33. Qxe6+ {[%clk
0:01:42.1]} 33... Kh8 {[%clk 0:00:10.1]} 34. Qe5+ {[%clk 0:01:34]} 34... Kg8
{[%clk 0:00:11.5]} 35. Qe6+ {[%clk 0:01:22.5]} 35... Kh8 {[%clk 0:00:11.9]} 36.
Qh3 {[%clk 0:01:24]} 36... Qxh3+ {[%clk 0:00:11.2]} 37. gxh3 {[%clk 0:01:25.6]}
37... Rd8 {[%clk 0:00:11.2]} 38. Rc7 {[%clk 0:01:25.6]} 38... c5 {[%clk
0:00:11.9]} 39. Rc6 {[%clk 0:01:22.9]} 39... Rd2 {[%clk 0:00:13.3]} 40. Rxg6
{[%clk 0:01:22.7]} 40... b5 {[%clk 0:00:13.3]} 41. Rb6 {[%clk 0:01:03.9]} 41...
b4 {[%clk 0:00:12.6]} 42. a3 {[%clk 0:01:03.1]} 42... bxa3 {[%clk 0:00:10.6]}
43. bxa3 {[%clk 0:01:04]} 43... Rxc2 {[%clk 0:00:11.8]} 44. f3 {[%clk
0:01:01.9]} 44... Ra2 {[%clk 0:00:10.8]} 45. Rb3 {[%clk 0:01:02.1]} 45... Rc2
{[%clk 0:00:03.5]} 46. a4 {[%clk 0:00:56.7]} 46... Ra2 {[%clk 0:00:03.1]} 47.
Rc3 {[%clk 0:00:54.1]} 47... Rxa4 {[%clk 0:00:03.8]} 48. Rxc5 {[%clk 0:00:55.6]}
48... Kg7 {[%clk 0:00:05.2]} 49. f4 {[%clk 0:00:56]} 49... Kg6 {[%clk 0:00:06]}
50. Kg4 {[%clk 0:00:57]} 50... Ra1 {[%clk 0:00:07.1]} 51. Rc6+ {[%clk
0:00:58.5]} 51... Kg7 {[%clk 0:00:07.4]} 52. h4 {[%clk 0:01:00.1]} 52... Rb1
{[%clk 0:00:08.3]} 53. h5 {[%clk 0:01:00.5]} 53... Ra1 {[%clk 0:00:09.1]} 54.
Kg5 {[%clk 0:01:00.7]} 54... Rg1+ {[%clk 0:00:09.2]} 55. Kf5 {[%clk 0:01:01.8]}
55... Ra1 {[%clk 0:00:10.2]} 56. Rb6 {[%clk 0:01:01.9]} 56... Ra2 {[%clk
0:00:10.3]} 57. Rg6+ {[%clk 0:01:00.4]} 57... Kf7 {[%clk 0:00:10.8]} 58. Kg5
{[%clk 0:00:59.3]} 58... Rg2+ {[%clk 0:00:10.7]} 59. Kf5 {[%clk 0:01:00.4]}
59... Ra2 {[%clk 0:00:11.1]} 60. Rc6 {[%clk 0:00:55.7]} 60... Ra5+ {[%clk
0:00:10.4]} 61. Kg4 {[%clk 0:00:56.6]} 61... Ra1 {[%clk 0:00:05.4]} 62. h6
{[%clk 0:00:57.3]} 62... Rb1 {[%clk 0:00:05.7]} 63. Kg5 {[%clk 0:00:54.9]} 1-0

[Event "*** Titled Tuesday 3|2 Blitz"]
[Site "Chess.com"]
[Date "2016.01.05"]
[Round "5"]
[White "swayamsm"]
[Black "Gergo85"]
[Result "1-0"]
[WhiteElo "2552"]
[BlackElo "2359"]
[TimeControl "180+2"]
[EndTime "12:01:56 PST"]
[Termination "swayamsm won by resignation"]

1. d4 {[%clk 0:03:01.6]} 1... d5 {[%clk 0:02:59.7]} 2. c4 {[%clk 0:03:00.3]}
2... dxc4 {[%clk 0:03:01.6]} 3. e3 {[%clk 0:03:00.2]} 3... e5 {[%clk 0:03:02]}
4. Bxc4 {[%clk 0:02:59.1]} 4... exd4 {[%clk 0:03:03.1]} 5. exd4 {[%clk 0:03:00]}
5... Bd6 {[%clk 0:03:04.7]} 6. Nf3 {[%clk 0:02:58.5]} 6... Nf6 {[%clk
0:03:05.9]} 7. O-O {[%clk 0:02:56.8]} 7... O-O {[%clk 0:03:07.5]} 8. Nc3 {[%clk
0:02:55.1]} 8... Nc6 {[%clk 0:03:08.5]} 9. Bg5 {[%clk 0:02:54.2]} 9... h6 {[%clk
0:03:01.7]} 10. Bh4 {[%clk 0:02:51]} 10... Bg4 {[%clk 0:03:02.5]} 11. h3 {[%clk
0:02:38.2]} 11... Bxf3 {[%clk 0:03:02.8]} 12. Qxf3 {[%clk 0:02:40.1]} 12... g5
{[%clk 0:03:00.5]} 13. Bg3 {[%clk 0:02:40.8]} 13... Bxg3 {[%clk 0:03:01.3]} 14.
Qxg3 {[%clk 0:02:33.4]} 14... Qxd4 {[%clk 0:02:56.8]} 15. Bb5 {[%clk 0:02:27.6]}
15... Qd6 {[%clk 0:02:38.9]} 16. Qxd6 {[%clk 0:02:01.8]} 16... cxd6 {[%clk
0:02:40.8]} 17. Rad1 {[%clk 0:02:03]} 17... Rfd8 {[%clk 0:02:40.4]} 18. f4
{[%clk 0:02:00.6]} 18... g4 {[%clk 0:02:38.6]} 19. Rd3 {[%clk 0:01:56.4]} 19...
gxh3 {[%clk 0:01:58.1]} 20. Rxh3 {[%clk 0:01:58.3]} 20... d5 {[%clk 0:01:41.6]}
21. Rxh6 {[%clk 0:01:56.8]} 21... Kg7 {[%clk 0:01:42.9]} 22. Rh3 {[%clk
0:01:55.2]} 22... d4 {[%clk 0:01:44.3]} 23. Ne2 {[%clk 0:01:52.9]} 23... a6
{[%clk 0:01:44.3]} 24. Bd3 {[%clk 0:01:48.7]} 24... Nb4 {[%clk 0:01:44.6]} 25.
a3 {[%clk 0:01:47.2]} 25... Nc6 {[%clk 0:01:21.6]} 26. Ng3 {[%clk 0:01:45.9]}
26... Rh8 {[%clk 0:01:04.7]} 27. Nf5+ {[%clk 0:01:45.9]} 27... Kg8 {[%clk
0:01:06.1]} 28. Rg3+ {[%clk 0:01:40.4]} 28... Kf8 {[%clk 0:01:07.1]} 29. Rc1
{[%clk 0:01:42.3]} 29... Rh5 {[%clk 0:00:37.5]} 30. Nd6 {[%clk 0:01:33.3]} 30...
Nd8 {[%clk 0:00:32.4]} 31. Kf2 {[%clk 0:01:23.3]} 31... Nd5 {[%clk 0:00:32.3]}
32. Kf3 {[%clk 0:01:20.2]} 32... Rh4 {[%clk 0:00:33.5]} 33. Rg4 {[%clk
0:01:15.4]} 33... Rxg4 {[%clk 0:00:34.6]} 34. Kxg4 {[%clk 0:01:17.3]} 34... Ke7
{[%clk 0:00:34.7]} 35. Nf5+ {[%clk 0:01:16.2]} 35... Kf6 {[%clk 0:00:35]} 36.
Nxd4 {[%clk 0:01:17.2]} 36... Ne6 {[%clk 0:00:32.5]} 37. Nxe6 {[%clk 0:01:15.3]}
37... fxe6 {[%clk 0:00:33.5]} 38. Be4 {[%clk 0:01:13.6]} 38... Rd8 {[%clk
0:00:28]} 39. Kf3 {[%clk 0:01:11.3]} 39... Ne7 {[%clk 0:00:13.5]} 40. Bxb7
{[%clk 0:01:11.9]} 40... Rd2 {[%clk 0:00:13.6]} 41. Bxa6 {[%clk 0:01:04.8]}
41... Rxb2 {[%clk 0:00:14.2]} 42. Bc4 {[%clk 0:01:03.4]} 42... Nf5 {[%clk
0:00:12.7]} 43. g4 {[%clk 0:00:53.4]} 43... Nd4+ {[%clk 0:00:11.5]} 44. Ke4
{[%clk 0:00:50.6]} 44... Ne2 {[%clk 0:00:10.5]} 45. g5+ {[%clk 0:00:50.5]} 45...
Kg7 {[%clk 0:00:10.7]} 46. Bxe2 {[%clk 0:00:48]} 46... Rxe2+ {[%clk 0:00:11]}
47. Kf3 {[%clk 0:00:45.8]} 47... Ra2 {[%clk 0:00:12.1]} 48. Rc3 {[%clk 0:00:47]}
48... Kg6 {[%clk 0:00:12.5]} 49. Re3 {[%clk 0:00:48.6]} 49... Kf7 {[%clk
0:00:12.9]} 50. Ke4 {[%clk 0:00:48.3]} 50... Rc2 {[%clk 0:00:12.9]} 51. Rf3
{[%clk 0:00:44.8]} 51... Rc4+ {[%clk 0:00:13.5]} 52. Kd3 {[%clk 0:00:44.8]}
52... Ra4 {[%clk 0:00:14.5]} 53. Kc2 {[%clk 0:00:45.7]} 53... Kg6 {[%clk
0:00:16.1]} 54. Kb3 {[%clk 0:00:47.3]} 54... Re4 {[%clk 0:00:16.9]} 55. a4
{[%clk 0:00:48.5]} 55... e5 {[%clk 0:00:16.8]} 56. f5+ {[%clk 0:00:39.3]} 56...
Kf7 {[%clk 0:00:14.8]} 57. f6 {[%clk 0:00:41.2]} 57... Rg4 {[%clk 0:00:15.3]}
58. Rf5 {[%clk 0:00:42.4]} 58... e4 {[%clk 0:00:16.4]} 59. Re5 {[%clk
0:00:39.4]} 59... e3 {[%clk 0:00:17.3]} 60. Rxe3 {[%clk 0:00:38.3]} 60... Rxg5
{[%clk 0:00:18.1]} 61. Rf3 {[%clk 0:00:39.9]} 61... Rg1 {[%clk 0:00:18.2]} 62.
a5 {[%clk 0:00:39.7]} 62... Rb1+ {[%clk 0:00:18.8]} 63. Ka4 {[%clk 0:00:39.2]}
63... Ra1+ {[%clk 0:00:19.9]} 64. Ra3 {[%clk 0:00:38.5]} 64... Rd1 {[%clk
0:00:19.6]} 65. a6 {[%clk 0:00:38.7]} 65... Kxf6 {[%clk 0:00:21.1]} 66. a7
{[%clk 0:00:39.7]} 66... Rd8 {[%clk 0:00:22.1]} 67. Kb5 {[%clk 0:00:40.8]} 67...
Ra8 {[%clk 0:00:23.1]} 68. Kb6 {[%clk 0:00:42.1]} 68... Ke7 {[%clk 0:00:23]} 69.
Kb7 {[%clk 0:00:43.6]} 1-0

[Event "*** Titled Tuesday 3|2 Blitz"]
[Site "Chess.com"]
[Date "2016.01.05"]
[Round "5"]
[White "AsafGivon"]
[Black "DeviatkinAndrey"]
[Result "1/2-1/2"]
[WhiteElo "2278"]
[BlackElo "2483"]
[TimeControl "180+2"]
[EndTime "12:01:56 PST"]
[Termination "Game drawn by repetition"]

1. e4 {[%clk 0:03:01]} 1... c6 {[%clk 0:03:00]} 2. d4 {[%clk 0:03:00.8]} 2... d5
{[%clk 0:03:01.3]} 3. Nd2 {[%clk 0:03:02.5]} 3... h6 {[%clk 0:03:01.4]} 4. Ngf3
{[%clk 0:02:58.9]} 4... dxe4 {[%clk 0:03:01.9]} 5. Nxe4 {[%clk 0:03:00.8]} 5...
Bf5 {[%clk 0:03:03.1]} 6. Bd3 {[%clk 0:03:01.7]} 6... e6 {[%clk 0:03:03.4]} 7.
O-O {[%clk 0:03:01]} 7... Nf6 {[%clk 0:03:04.2]} 8. Nxf6+ {[%clk 0:02:35]} 8...
Qxf6 {[%clk 0:03:05.1]} 9. Bxf5 {[%clk 0:02:36.2]} 9... Qxf5 {[%clk 0:03:05.8]}
10. c3 {[%clk 0:02:37.2]} 10... Nd7 {[%clk 0:03:05.7]} 11. Qb3 {[%clk
0:02:35.9]} 11... Qb5 {[%clk 0:03:06.8]} 12. Re1 {[%clk 0:02:18.1]} 12... Bd6
{[%clk 0:03:04.6]} 13. Qxb5 {[%clk 0:02:00.9]} 13... cxb5 {[%clk 0:03:05.4]} 14.
d5 {[%clk 0:02:02.8]} 14... e5 {[%clk 0:03:06.1]} 15. Nd4 {[%clk 0:02:04.1]}
15... a6 {[%clk 0:02:41.1]} 16. Nf5 {[%clk 0:02:03.6]} 16... Bf8 {[%clk
0:02:42.2]} 17. f4 {[%clk 0:01:52.2]} 17... f6 {[%clk 0:02:17.5]} 18. fxe5
{[%clk 0:01:50.5]} 18... Nxe5 {[%clk 0:01:20.4]} 19. Bf4 {[%clk 0:01:49.7]}
19... O-O-O {[%clk 0:01:21.3]} 20. Bxe5 {[%clk 0:01:45.9]} 20... fxe5 {[%clk
0:01:21.6]} 21. Rxe5 {[%clk 0:01:45.3]} 21... g6 {[%clk 0:01:20.5]} 22. Nh4
{[%clk 0:01:31.7]} 22... Bd6 {[%clk 0:00:53.8]} 23. Re6 {[%clk 0:01:27.3]} 23...
Bc5+ {[%clk 0:00:53.2]} 24. Kh1 {[%clk 0:01:23.5]} 24... Rxd5 {[%clk 0:00:50.1]}
25. Nxg6 {[%clk 0:01:24.3]} 25... Rhd8 {[%clk 0:00:43.3]} 26. h4 {[%clk
0:01:14]} 26... h5 {[%clk 0:00:27.8]} 27. Nf4 {[%clk 0:00:43.7]} 27... Rf5
{[%clk 0:00:26]} 28. g3 {[%clk 0:00:20.6]} 28... Rd2 {[%clk 0:00:26.4]} 29. Re2
{[%clk 0:00:12.4]} 29... Rxe2 {[%clk 0:00:20.1]} 30. Nxe2 {[%clk 0:00:14.3]}
30... Rf2 {[%clk 0:00:21.4]} 31. Re1 {[%clk 0:00:14.5]} 31... Kd7 {[%clk
0:00:17]} 32. b4 {[%clk 0:00:15.1]} 32... Be3 {[%clk 0:00:12.9]} 33. Nd4 {[%clk
0:00:09.2]} 33... Bxd4 {[%clk 0:00:12.8]} 34. cxd4 {[%clk 0:00:11.1]} 34... Rxa2
{[%clk 0:00:11.4]} 35. Re5 {[%clk 0:00:08.7]} 35... Rb2 {[%clk 0:00:12.7]} 36.
Rxh5 {[%clk 0:00:09.7]} 36... Rxb4 {[%clk 0:00:14]} 37. Rh7+ {[%clk 0:00:11.1]}
37... Ke6 {[%clk 0:00:15]} 38. Rxb7 {[%clk 0:00:11.6]} 38... Kf5 {[%clk
0:00:14.7]} 39. Kg2 {[%clk 0:00:10.5]} 39... Rxd4 {[%clk 0:00:15.3]} 40. Ra7
{[%clk 0:00:09.2]} 40... Rd6 {[%clk 0:00:14.9]} 41. Kh3 {[%clk 0:00:09.7]} 41...
Rb6 {[%clk 0:00:14.4]} 42. g4+ {[%clk 0:00:10.8]} 42... Kg6 {[%clk 0:00:15.6]}
43. h5+ {[%clk 0:00:11.7]} 43... Kg5 {[%clk 0:00:17.1]} 44. Rg7+ {[%clk
0:00:12.7]} 44... Kh6 {[%clk 0:00:18.2]} 45. Rg8 {[%clk 0:00:12.4]} 45... Kh7
{[%clk 0:00:18.8]} 46. Rc8 {[%clk 0:00:09.2]} 46... b4 {[%clk 0:00:19.9]} 47. g5
{[%clk 0:00:10.8]} 47... b3 {[%clk 0:00:21.3]} 48. Rc7+ {[%clk 0:00:12.4]} 48...
Kg8 {[%clk 0:00:22.1]} 49. Rc8+ {[%clk 0:00:13.9]} 49... Kg7 {[%clk 0:00:22.1]}
50. Rc7+ {[%clk 0:00:14.8]} 50... Kg8 {[%clk 0:00:22.8]} 51. Rc8+ {[%clk
0:00:16.1]} 51... Kg7 {[%clk 0:00:16.5]} 52. Rc7+ {[%clk 0:00:17.2]} 52... Kf8
{[%clk 0:00:11.2]} 53. h6 {[%clk 0:00:18.5]} 53... Kg8 {[%clk 0:00:07.9]} 54.
Rc8+ {[%clk 0:00:18.1]} 54... Kh7 {[%clk 0:00:08.9]} 55. Rc7+ {[%clk 0:00:18.1]}
55... Kh8 {[%clk 0:00:09.3]} 56. Rc8+ {[%clk 0:00:18.7]} 56... Kh7 {[%clk
0:00:10.1]} 57. Rc7+ {[%clk 0:00:20]} 57... Kh8 {[%clk 0:00:08.8]} 58. Rc8+
{[%clk 0:00:21.3]} 58... Kh7 {[%clk 0:00:10.4]} 59. Rc7+ {[%clk 0:00:22.6]}
59... Kg8 {[%clk 0:00:10.4]} 60. Rc8+ {[%clk 0:00:17.3]} 60... Kh7 {[%clk
0:00:11]} 61. Rc7+ {[%clk 0:00:18.3]} 61... Kh8 {[%clk 0:00:12.5]} 62. Rc8+
{[%clk 0:00:19.6]} 62... Kh7 {[%clk 0:00:14.1]} 1/2-1/2

[Event "*** Titled Tuesday 3|2 Blitz"]
[Site "Chess.com"]
[Date "2016.01.05"]
[Round "5"]
[White "Keranke"]
[Black "Colombiano07"]
[Result "1/2-1/2"]
[WhiteElo "2605"]
[BlackElo "2166"]
[TimeControl "180+2"]
[EndTime "12:02:24 PST"]
[Termination "Game drawn by repetition"]

1. d4 {[%clk 0:03:01.9]} 1... Nf6 {[%clk 0:02:59.5]} 2. c4 {[%clk 0:02:59.5]}
2... d6 {[%clk 0:03:00.3]} 3. Nf3 {[%clk 0:03:00.1]} 3... Nbd7 {[%clk
0:03:00.1]} 4. g3 {[%clk 0:03:01.5]} 4... e5 {[%clk 0:03:00.3]} 5. Bg2 {[%clk
0:03:02.6]} 5... Be7 {[%clk 0:03:01]} 6. O-O {[%clk 0:03:03.5]} 6... O-O {[%clk
0:03:01.9]} 7. Nc3 {[%clk 0:03:04.6]} 7... c6 {[%clk 0:03:02.5]} 8. e4 {[%clk
0:03:04.2]} 8... Qc7 {[%clk 0:03:01.9]} 9. h3 {[%clk 0:03:05.3]} 9... a6 {[%clk
0:03:02.9]} 10. Be3 {[%clk 0:02:59]} 10... Re8 {[%clk 0:03:02]} 11. Qc2 {[%clk
0:02:59.7]} 11... b5 {[%clk 0:03:00.6]} 12. c5 {[%clk 0:03:00.8]} 12... dxc5
{[%clk 0:02:27.1]} 13. dxe5 {[%clk 0:03:01.4]} 13... Nxe5 {[%clk 0:02:27.5]} 14.
Nxe5 {[%clk 0:03:01.5]} 14... Qxe5 {[%clk 0:02:28.3]} 15. f4 {[%clk 0:03:02.1]}
15... Qe6 {[%clk 0:02:17.2]} 16. Rad1 {[%clk 0:02:50.9]} 16... Bb7 {[%clk
0:02:03]} 17. f5 {[%clk 0:02:22.8]} 17... Qc8 {[%clk 0:02:03.2]} 18. e5 {[%clk
0:02:20.4]} 18... Nd5 {[%clk 0:02:02.3]} 19. Nxd5 {[%clk 0:02:17.7]} 19... cxd5
{[%clk 0:02:02.9]} 20. Bxd5 {[%clk 0:02:18.6]} 20... Bxd5 {[%clk 0:02:03.1]} 21.
Rxd5 {[%clk 0:02:20.5]} 21... c4 {[%clk 0:01:58.9]} 22. Qe4 {[%clk 0:02:01.3]}
22... Bf8 {[%clk 0:01:53.7]} 23. Rfd1 {[%clk 0:01:54.2]} 23... Qc6 {[%clk
0:01:50.3]} 24. Qg4 {[%clk 0:01:29]} 24... c3 {[%clk 0:01:33.4]} 25. bxc3 {[%clk
0:01:21.6]} 25... Qxc3 {[%clk 0:01:33.4]} 26. Qe4 {[%clk 0:00:42.3]} 26... Rac8
{[%clk 0:01:25]} 27. Bf4 {[%clk 0:00:26.8]} 27... Rc4 {[%clk 0:01:17.9]} 28. Qd3
{[%clk 0:00:23.2]} 28... Qb2 {[%clk 0:01:00.8]} 29. Rd2 {[%clk 0:00:23.4]} 29...
Qa1+ {[%clk 0:00:57.6]} 30. Kg2 {[%clk 0:00:23.3]} 30... Rc1 {[%clk 0:00:56.2]}
31. Rf2 {[%clk 0:00:19.5]} 31... Rg1+ {[%clk 0:00:50.7]} 32. Kf3 {[%clk
0:00:20.7]} 32... h5 {[%clk 0:00:27.1]} 33. Rd7 {[%clk 0:00:18.2]} 33... Rxe5
{[%clk 0:00:20.6]} 34. Bxe5 {[%clk 0:00:17.3]} 34... Qxe5 {[%clk 0:00:21]} 35.
Rg2 {[%clk 0:00:14.1]} 35... Re1 {[%clk 0:00:17.5]} 36. Rd5 {[%clk 0:00:11.5]}
36... Rf1+ {[%clk 0:00:16]} 37. Rf2 {[%clk 0:00:09.7]} 37... Rxf2+ {[%clk
0:00:16]} 38. Kxf2 {[%clk 0:00:11.6]} 38... Qb2+ {[%clk 0:00:16.8]} 39. Qd2
{[%clk 0:00:11.7]} 39... Qb1 {[%clk 0:00:18.2]} 40. Kg2 {[%clk 0:00:08.9]} 40...
Qe4+ {[%clk 0:00:17.7]} 41. Kh2 {[%clk 0:00:10.5]} 41... h4 {[%clk 0:00:18.1]}
42. gxh4 {[%clk 0:00:10.9]} 42... Be7 {[%clk 0:00:17.7]} 43. Qd3 {[%clk
0:00:05.7]} 43... Qxh4 {[%clk 0:00:13.8]} 44. Qe3 {[%clk 0:00:05.3]} 44... Bg5
{[%clk 0:00:13.1]} 45. Qf3 {[%clk 0:00:03.2]} 45... Bf4+ {[%clk 0:00:13.9]} 46.
Kg2 {[%clk 0:00:04.8]} 46... Qg5+ {[%clk 0:00:14.8]} 47. Kh1 {[%clk 0:00:06.3]}
47... Qh4 {[%clk 0:00:11.4]} 48. Rd1 {[%clk 0:00:05.3]} 48... Bg3 {[%clk
0:00:11.5]} 49. Kg2 {[%clk 0:00:05.9]} 49... Be5 {[%clk 0:00:11.9]} 50. Qg4
{[%clk 0:00:04.7]} 50... Qe7 {[%clk 0:00:11.3]} 51. Re1 {[%clk 0:00:05]} 51...
Qb7+ {[%clk 0:00:11.3]} 52. Qf3 {[%clk 0:00:06.4]} 52... Qc7 {[%clk 0:00:12.6]}
53. Re2 {[%clk 0:00:06.1]} 53... f6 {[%clk 0:00:13.2]} 54. Qa8+ {[%clk
0:00:06.3]} 54... Kh7 {[%clk 0:00:14.1]} 55. Qxa6 {[%clk 0:00:07.8]} 55... Qc4
{[%clk 0:00:15.2]} 56. Rf2 {[%clk 0:00:04.1]} 56... Qe4+ {[%clk 0:00:15.7]} 57.
Kf1 {[%clk 0:00:04.9]} 57... Qb1+ {[%clk 0:00:15]} 58. Kg2 {[%clk 0:00:05.9]}
58... Qe4+ {[%clk 0:00:16.1]} 59. Kf1 {[%clk 0:00:07.5]} 59... Qh1+ {[%clk
0:00:15.5]} 60. Ke2 {[%clk 0:00:08.7]} 60... Qe4+ {[%clk 0:00:15.9]} 61. Kf1
{[%clk 0:00:10.1]} 1/2-1/2

[Event "*** Titled Tuesday 3|2 Blitz"]
[Site "Chess.com"]
[Date "2016.01.05"]
[Round "5"]
[White "Cats4Sale"]
[Black "oggy1984"]
[Result "1-0"]
[WhiteElo "2227"]
[BlackElo "2169"]
[TimeControl "180+2"]
[EndTime "12:02:28 PST"]
[Termination "Cats4Sale won by resignation"]

1. e4 {[%clk 0:03:01.9]} 1... e6 {[%clk 0:02:05.1]} 2. d4 {[%clk 0:03:01.4]}
2... d5 {[%clk 0:02:05.5]} 3. Nd2 {[%clk 0:03:03]} 3... Nf6 {[%clk 0:02:05.4]}
4. e5 {[%clk 0:03:04.3]} 4... Nfd7 {[%clk 0:02:04.6]} 5. Bd3 {[%clk 0:03:05.5]}
5... c5 {[%clk 0:02:05.1]} 6. c3 {[%clk 0:03:07.2]} 6... Nc6 {[%clk 0:02:05.6]}
7. Ne2 {[%clk 0:03:08.8]} 7... Be7 {[%clk 0:02:04.3]} 8. O-O {[%clk 0:03:01.3]}
8... O-O {[%clk 0:02:04.5]} 9. f4 {[%clk 0:02:43.8]} 9... cxd4 {[%clk
0:02:00.7]} 10. cxd4 {[%clk 0:02:44.4]} 10... Qb6 {[%clk 0:02:01]} 11. Nf3
{[%clk 0:02:45.5]} 11... f5 {[%clk 0:01:44.9]} 12. b3 {[%clk 0:02:33.4]} 12...
Qd8 {[%clk 0:01:43.5]} 13. Bb2 {[%clk 0:02:30]} 13... Kh8 {[%clk 0:01:40.6]} 14.
Rc1 {[%clk 0:02:25.8]} 14... Rg8 {[%clk 0:01:37.6]} 15. a3 {[%clk 0:02:12.9]}
15... a5 {[%clk 0:01:37.1]} 16. h3 {[%clk 0:01:57.1]} 16... Nb6 {[%clk
0:01:26.9]} 17. a4 {[%clk 0:01:53.2]} 17... Bd7 {[%clk 0:01:25.6]} 18. Kh2
{[%clk 0:01:28.4]} 18... Be8 {[%clk 0:01:20.5]} 19. g4 {[%clk 0:01:27.8]} 19...
Bg6 {[%clk 0:01:11.9]} 20. Ng3 {[%clk 0:01:15.8]} 20... Bh4 {[%clk 0:00:57.5]}
21. Nxh4 {[%clk 0:01:01.8]} 21... Qxh4 {[%clk 0:00:56.3]} 22. gxf5 {[%clk
0:00:54.3]} 22... exf5 {[%clk 0:00:56.1]} 23. Nxf5 {[%clk 0:00:53.6]} 23... Bxf5
{[%clk 0:00:56.6]} 24. Bxf5 {[%clk 0:00:54.4]} 24... Rgf8 {[%clk 0:00:54.7]} 25.
Qg4 {[%clk 0:00:46.4]} 25... Qh6 {[%clk 0:00:54.3]} 26. Bb1 {[%clk 0:00:34.2]}
26... Nc8 {[%clk 0:00:32.9]} 27. Qg5 {[%clk 0:00:21.8]} 27... Qxg5 {[%clk
0:00:26.6]} 28. fxg5 {[%clk 0:00:23]} 28... N8e7 {[%clk 0:00:28.5]} 29. Kg2
{[%clk 0:00:22.9]} 29... Kg8 {[%clk 0:00:25.7]} 30. Rxf8+ {[%clk 0:00:22.9]}
30... Rxf8 {[%clk 0:00:23.7]} 31. Rf1 {[%clk 0:00:24.1]} 31... Rc8 {[%clk
0:00:23.8]} 32. Rc1 {[%clk 0:00:17.7]} 32... Rf8 {[%clk 0:00:23.7]} 33. Rf1
{[%clk 0:00:17]} 33... Rc8 {[%clk 0:00:23.8]} 34. Rc1 {[%clk 0:00:14.1]} 34...
Rf8 {[%clk 0:00:24.1]} 35. Ba3 {[%clk 0:00:12.4]} 35... Rf4 {[%clk 0:00:18.6]}
36. Bxe7 {[%clk 0:00:12.8]} 36... Nxe7 {[%clk 0:00:20.5]} 37. Rc7 {[%clk
0:00:14.5]} 37... Nc6 {[%clk 0:00:18.2]} 38. e6 {[%clk 0:00:04.2]} 38... Kf8
{[%clk 0:00:12]} 39. Rxb7 {[%clk 0:00:03.7]} 39... Rxd4 {[%clk 0:00:09.8]} 40.
Bxh7 {[%clk 0:00:05.2]} 40... Rd2+ {[%clk 0:00:08.8]} 41. Kf1 {[%clk 0:00:05.7]}
41... Rd1+ {[%clk 0:00:02.9]} 42. Ke2 {[%clk 0:00:06.5]} 42... Rh1 {[%clk
0:00:02.5]} 43. Bf5 {[%clk 0:00:06.6]} 43... Rh2+ {[%clk 0:00:03.2]} 44. Ke3
{[%clk 0:00:03.9]} 44... Rh1 {[%clk 0:00:04.2]} 45. Kf4 {[%clk 0:00:03.8]} 45...
Re1 {[%clk 0:00:04.6]} 46. Rf7+ {[%clk 0:00:03.8]} 46... Kg8 {[%clk 0:00:04.3]}
47. Rc7 {[%clk 0:00:02.6]} 47... Nd4 {[%clk 0:00:03]} 48. Bg4 {[%clk 0:00:03.3]}
48... Kf8 {[%clk 0:00:03.2]} 49. Ra7 {[%clk 0:00:03.2]} 49... g6 {[%clk
0:00:03.5]} 50. Rxa5 {[%clk 0:00:03.9]} 50... Nxe6+ {[%clk 0:00:03.5]} 51. Bxe6
{[%clk 0:00:04.8]} 51... Rxe6 {[%clk 0:00:05.4]} 52. Rxd5 {[%clk 0:00:06.5]}
52... Rb6 {[%clk 0:00:05.9]} 53. Rb5 {[%clk 0:00:07.4]} 53... Rc6 {[%clk
0:00:06.5]} 54. a5 {[%clk 0:00:08.1]} 54... Kf7 {[%clk 0:00:07.8]} 55. Rb6
{[%clk 0:00:08.8]} 55... Rc5 {[%clk 0:00:08.6]} 56. b4 {[%clk 0:00:09.7]} 56...
Rf5+ {[%clk 0:00:09.2]} 57. Kg4 {[%clk 0:00:11]} 57... Rd5 {[%clk 0:00:09.9]}
58. a6 {[%clk 0:00:12.2]} 58... Rd4+ {[%clk 0:00:10.9]} 59. Kf3 {[%clk
0:00:13.6]} 59... Rd3+ {[%clk 0:00:11.5]} 60. Ke4 {[%clk 0:00:15]} 60... Ra3
{[%clk 0:00:13.4]} 61. b5 {[%clk 0:00:16.4]} 61... Ra1 {[%clk 0:00:12.8]} 62.
Rb7+ {[%clk 0:00:17.4]} 62... Ke6 {[%clk 0:00:13.2]} 63. a7 {[%clk 0:00:18.9]}
63... Ra4+ {[%clk 0:00:13.2]} 64. Kd3 {[%clk 0:00:19.7]} 64... Kd5 {[%clk
0:00:14.1]} 65. b6 {[%clk 0:00:21.1]} 65... Ra3+ {[%clk 0:00:14.8]} 66. Kc2
{[%clk 0:00:22.3]} 66... Kc4 {[%clk 0:00:15.7]} 67. Rc7+ {[%clk 0:00:21.2]}
67... Kb5 {[%clk 0:00:15.4]} 68. b7 {[%clk 0:00:22.3]} 1-0